fUST/lending_fUST_20250928
["ID","MTS","AMOUNT","RATE_DAILY","PERIOD"]
[388114019,1759015842768,-480.0,0.00035616,9]
[388114021,1759015842777,-480.0,0.00035616,9]
[388114023,1759015842787,-480.0,0.00035616,9]
[388114025,1759015842797,-3205.67,0.00035616,9]
[388114027,1759015842807,-480.0,0.00035616,9]
[388114029,1759015842816,-480.0,0.00035616,9]
[388114031,1759015842826,-894.44,0.00035616,9]
[388114033,1759015842836,-2313.31,0.00035616,9]
[388114035,1759015842846,-480.0,0.00035616,9]
[388114037,1759015842856,-878.19,0.00035616,9]
[388114039,1759015842865,-480.0,0.00035616,9]
[388114041,1759015842875,-1933.81,0.00035616,9]
[388114043,1759015842884,-480.0,0.00035616,9]
[388114045,1759015842894,-1827.02,0.00035616,9]
[388114047,1759015842903,-480.0,0.00035616,9]
[388114049,1759015842912,-480.0,0.00035616,9]
[388114051,1759015842922,-480.0,0.00035616,9]
[388114053,1759015842931,-480.0,0.00035616,9]
[388114055,1759015842940,-506.49,0.00035616,9]
[388114057,1759015842950,-480.0,0.00035616,9]
[388114059,1759015842960,-485.44494755,0.00035616,9]
[388114061,1759015842969,-480.0,0.00035616,9]
[388114064,1759015842979,-480.0,0.00035616,9]
[388114065,1759015842988,-480.0,0.00035616,9]
[388114068,1759015842998,-520.0,0.00035616,3]
[388114070,1759015843007,-470.16531955,0.00035616,9]
[388114072,1759015843017,-480.0,0.00035616,9]
[388114073,1759015843026,-480.0,0.00035616,9]
[388114075,1759015843036,-480.0,0.00035616,9]
[388114077,1759015843046,-927.08,0.00035616,9]
[388114079,1759015843056,-480.0,0.00035616,9]
[388114081,1759015843065,-480.0,0.00035616,9]
[388114084,1759015843076,-480.0,0.00035616,9]
[388114086,1759015843086,-1627.87,0.00035616,9]
[388114088,1759015843095,-480.0,0.00035616,9]
[388114090,1759015843104,-985.48,0.00035616,9]
[388114092,1759015843113,-480.0,0.00035616,9]
[388114094,1759015843123,-2137.18,0.00035616,9]
[388114096,1759015843132,-480.0,0.00035616,9]
[388114098,1759015843142,-480.0,0.00035616,9]
[388114100,1759015843151,-480.0,0.00035616,9]
[388114102,1759015843161,-480.0,0.00035616,9]
[388114104,1759015843170,-480.0,0.00035616,9]
[388114106,1759015843180,-480.0,0.00035616,9]
[388114108,1759015843189,-480.0,0.00035616,9]
[388114110,1759015843199,-480.0,0.00035616,9]
[388114112,1759015843210,-480.0,0.00035616,9]
[388114114,1759015843220,-253.02,0.00035616,9]
[388114116,1759015843230,-500.0,0.00035616,90]
[388114119,1759015843240,-655.26,0.00035616,9]
[388114122,1759015843249,-480.0,0.00035616,9]
[388114125,1759015843259,-480.0,0.00035616,9]
[388114127,1759015843268,-505.57,0.00035616,9]
[388114129,1759015843277,-480.0,0.00035616,9]
[388114131,1759015843287,-480.0,0.00035616,9]
[388114133,1759015843297,-480.0,0.00035616,9]
[388114135,1759015843307,-500.0,0.00035616,9]
[388114137,1759015843316,-480.0,0.00035616,9]
[388114139,1759015843325,-480.0,0.00035616,9]
[388114141,1759015843335,-480.0,0.00035616,9]
[388114143,1759015843344,-896.7,0.00035616,9]
[388114145,1759015843354,-426.55638351,0.00035616,9]
[388114147,1759015843364,-2064.01,0.00035616,9]
[388114149,1759015843374,-480.0,0.00035616,9]
[388114151,1759015843383,-480.0,0.00035616,9]
[388114153,1759015843392,-480.0,0.00035616,9]
[388114155,1759015843402,-480.0,0.00035616,9]
[388114157,1759015843413,-609.36421997,0.00035616,9]
[388114159,1759015843422,-480.0,0.00035616,9]
[388114161,1759015843431,-500.0,0.00035616,9]
[388114163,1759015843441,-500.0,0.00035616,9]
[388114165,1759015843451,-500.0,0.00035616,9]
[388114167,1759015843460,-500.0,0.00035616,9]
[388114169,1759015843470,-580.3649288,0.00035616,9]
[388114171,1759015843481,-480.0,0.00035616,9]
[388114173,1759015843490,-480.0,0.00035616,9]
[388114175,1759015843500,-480.0,0.00035616,9]
[388114177,1759015843510,-151.0,0.00035616,7]
[388114179,1759015843520,-151.0,0.00035616,7]
[388114181,1759015843531,-151.0,0.00035616,7]
[388114183,1759015843540,-480.0,0.00035616,9]
[388114185,1759015843550,-151.0,0.00035616,7]
[388114188,1759015843561,-204.646515,0.00035616,7]
[388114190,1759015843570,-480.0,0.00035616,9]
[388114192,1759015843581,-480.0,0.00035616,9]
[388114194,1759015843590,-480.0,0.00035616,9]
[388114196,1759015843600,-480.0,0.00035616,9]
[388114197,1759015843610,-480.0,0.00035616,9]
[388114199,1759015843620,-151.0,0.00035616,7]
[388114201,1759015843629,-151.0,0.00035616,7]
[388114203,1759015843644,-151.0,0.00035616,7]
[388114205,1759015843654,-480.0,0.00035616,9]
[388114207,1759015843663,-480.0,0.00035616,9]
[388114209,1759015843672,-151.0,0.00035616,7]
[388114211,1759015843683,-480.0,0.00035616,9]
[388114213,1759015843692,-984.61,0.00035616,9]
[388114215,1759015843701,-1060.99,0.00035616,9]
[388114217,1759015843711,-856.22,0.00035616,9]
[388114219,1759015843722,-657.37,0.00035616,9]
[388114221,1759015843731,-480.0,0.00035616,9]
[388114223,1759015843741,-480.0,0.00035616,9]
[388114225,1759015843751,-687.78,0.00035616,9]
[388114227,1759015843762,-480.0,0.00035616,9]
[388114229,1759015843772,-480.0,0.00035616,9]
[388114231,1759015843781,-480.0,0.00035616,9]
[388114233,1759015843791,-219.298612,0.00035616,7]
[388114235,1759015843801,-480.0,0.00035616,9]
[388114238,1759015843810,-480.0,0.00035616,9]
[388114239,1759015843819,-1721.79,0.00035616,9]
[388114241,1759015843828,-480.0,0.00035616,9]
[388114243,1759015843838,-480.0,0.00035616,9]
[388114245,1759015843847,-480.0,0.00035616,9]
[388114247,1759015843857,-929.15,0.00035616,9]
[388114249,1759015843867,-480.0,0.00035616,9]
[388114251,1759015843876,-885.2,0.00035616,9]
[388114253,1759015843886,-480.0,0.00035616,9]
[388114256,1759015843895,-4886.35,0.00035616,9]
[388114258,1759015843906,-693.69,0.00035616,9]
[388114259,1759015843916,-480.0,0.00035616,9]
[388114262,1759015843925,-480.0,0.00035616,9]
[388114263,1759015843935,-480.0,0.00035616,9]
[388114266,1759015843945,-480.0,0.00035616,9]
[388114269,1759015843955,-480.0,0.00035616,9]
[388114271,1759015843964,-513.11,0.00035616,9]
[388114275,1759015843974,-480.0,0.00035616,9]
[388114277,1759015843983,-507.82,0.00035616,9]
[388114278,1759015843993,-480.0,0.00035616,9]
[388114280,1759015844002,-1607.64,0.00035616,9]
[388114282,1759015844012,-2263.48,0.00035616,9]
[388114284,1759015844021,-3623.69,0.00035616,9]
[388114286,1759015844030,-480.0,0.00035616,9]
[388114288,1759015844040,-480.0,0.00035616,9]
[388114290,1759015844048,-430.41013148,0.00035616,9]
[388114292,1759015844058,-3049.76,0.00035616,9]
[388114294,1759015844067,-480.0,0.00035616,9]
[388114296,1759015844077,-576.62,0.00035616,9]
[388114298,1759015844086,-480.0,0.00035616,9]
[388114300,1759015844096,-480.0,0.00035616,9]
[388114302,1759015844106,-847.3,0.00035616,9]
[388114304,1759015844115,-480.0,0.00035616,9]
[388114306,1759015844124,-480.0,0.00035616,9]
[388114308,1759015844134,-1475.88,0.00035616,9]
[388114310,1759015844144,-480.0,0.00035616,9]
[388114312,1759015844154,-548.58427824,0.00035616,9]
[388114314,1759015844163,-480.0,0.00035616,9]
[388114316,1759015844172,-480.0,0.00035616,9]
[388114318,1759015844182,-480.0,0.00035616,9]
[388114320,1759015844191,-3199.64,0.00035616,9]
[388114322,1759015844201,-746.59,0.00035616,9]
[388114324,1759015844210,-151.0,0.00035616,7]
[388114326,1759015844220,-1332.3,0.00035616,9]
[388114328,1759015844230,-151.0,0.00035616,7]
[388114330,1759015844239,-151.0,0.00035616,7]
[388114332,1759015844249,-947.94,0.00035616,9]
[388114334,1759015844258,-151.0,0.00035616,7]
[388114336,1759015844268,-480.0,0.00035616,9]
[388114338,1759015844278,-480.0,0.00035616,9]
[388114341,1759015844288,-151.0,0.00035616,7]
[388114343,1759015844297,-151.0,0.00035616,7]
[388114345,1759015844306,-151.0,0.00035616,7]
[388114358,1759015844515,-480.0,0.00035616,9]
[388114359,1759015844526,-151.0,0.00035616,7]
[388114360,1759015844536,-480.0,0.00035616,9]
[388114361,1759015844545,-1579.24,0.00035616,9]
[388114362,1759015844554,-480.0,0.00035616,9]
[388114363,1759015844563,-210.535776,0.00035616,7]
[388114364,1759015844572,-210.535776,0.00035616,7]
[388114365,1759015844581,-999.0,0.00035616,120]
[388114366,1759015844590,-210.535776,0.00035616,7]
[388114367,1759015844599,-210.535776,0.00035616,7]
[388114368,1759015844608,-901.74,0.00035616,9]
[388114369,1759015844616,-210.535776,0.00035616,7]
[388114370,1759015844625,-480.0,0.00035616,9]
[388114371,1759015844635,-210.535776,0.00035616,7]
[388114372,1759015844644,-480.0,0.00035616,9]
[388114373,1759015844654,-210.535776,0.00035616,7]
[388114374,1759015844663,-210.535776,0.00035616,7]
[388114375,1759015844672,-210.535776,0.00035616,7]
[388114376,1759015844681,-210.535776,0.00035616,7]
[388114377,1759015844690,-1948.62,0.00035616,9]
[388114378,1759015844700,-210.535776,0.00035616,7]
[388114379,1759015844709,-210.535776,0.00035616,7]
[388114380,1759015844718,-480.0,0.00035616,9]
[388114381,1759015844727,-210.535776,0.00035616,7]
[388114382,1759015844736,-786.8,0.00035616,9]
[388114383,1759015844746,-210.535776,0.00035616,7]
[388114384,1759015844755,-210.535776,0.00035616,7]
[388114385,1759015844764,-210.535776,0.00035616,7]
[388114386,1759015844773,-758.37,0.00035616,9]
[388114388,1759015844783,-772.97,0.00035616,9]
[388114389,1759015844793,-151.0,0.00035616,7]
[388114390,1759015844802,-151.0,0.00035616,7]
[388114392,1759015844812,-151.0,0.00035616,7]
[388114394,1759015844822,-151.0,0.00035616,7]
[388114396,1759015844831,-151.0,0.00035616,7]
[388114398,1759015844841,-151.0,0.00035616,7]
[388114400,1759015844851,-480.0,0.00035616,9]
[388114402,1759015844860,-744.94,0.00035616,9]
[388114404,1759015844869,-480.0,0.00035616,9]
[388114406,1759015844879,-480.0,0.00035616,9]
[388114408,1759015844888,-4162.32,0.00035616,9]
[388114410,1759015844898,-1136.79,0.00035616,9]
[388114412,1759015844907,-480.0,0.00035616,9]
[388114414,1759015844917,-480.0,0.00035616,9]
[388114416,1759015844926,-151.0,0.00035616,7]
[388114418,1759015844936,-480.0,0.00035616,9]
[388114420,1759015844945,-151.0,0.00035616,7]
[388114422,1759015844956,-480.0,0.00035616,9]
[388114424,1759015844966,-151.0,0.00035616,7]
[388114426,1759015844975,-151.0,0.00035616,7]
[388114428,1759015844985,-1027.76,0.00035616,9]
[388114430,1759015844994,-480.0,0.00035616,9]
[388114432,1759015845005,-480.0,0.00035616,9]
[388114434,1759015845014,-1000.0,0.00035616,9]
[388114436,1759015845024,-480.0,0.00035616,9]
[388114438,1759015845032,-1104.95,0.00035616,9]
[388114440,1759015845041,-480.0,0.00035616,9]
[388114442,1759015845050,-1161.04,0.00035616,9]
[388114444,1759015845060,-480.0,0.00035616,9]
[388114446,1759015845069,-480.0,0.00035616,9]
[388114447,1759015845078,-480.0,0.00035616,9]
[388114450,1759015845088,-1566.78,0.00035616,9]
[388114452,1759015845098,-1246.8,0.00035616,9]
[388114454,1759015845107,-480.0,0.00035616,9]
[388114456,1759015845117,-1206.18,0.00035616,9]
[388114458,1759015845127,-2598.99,0.00035616,9]
[388114460,1759015845136,-480.0,0.00035616,9]
[388114462,1759015845146,-10470.8,0.00035616,9]
[388114464,1759015845156,-480.0,0.00035616,9]
[388114466,1759015845165,-480.0,0.00035616,9]
[388114467,1759015845175,-551.08,0.00035616,9]
[388114470,1759015845186,-480.0,0.00035616,9]
[388114471,1759015845195,-480.0,0.00035616,9]
[388114473,1759015845204,-480.0,0.00035616,9]
[388114475,1759015845213,-9346.63,0.00035616,9]
[388114478,1759015845224,-568.55,0.00035616,9]
[388114480,1759015845233,-159.6437741,0.00035616,9]
[388114481,1759015845243,-480.0,0.00035616,9]
[388114483,1759015845252,-512.46,0.00035616,9]
[388114485,1759015845261,-480.0,0.00035616,9]
[388114487,1759015845270,-480.0,0.00035616,9]
[388114489,1759015845280,-480.0,0.00035616,9]
[388114491,1759015845290,-2063.23,0.00035616,9]
[388114493,1759015845299,-480.0,0.00035616,9]
[388114495,1759015845310,-587.24109811,0.00035616,9]
[388114497,1759015845320,-742.13,0.00035616,9]
[388114499,1759015845329,-480.0,0.00035616,9]
[388114501,1759015845339,-2677.64,0.00035616,9]
[388114503,1759015845349,-848.09,0.00035616,9]
[388114505,1759015845358,-480.0,0.00035616,9]
[388114507,1759015845367,-535.68,0.00035616,9]
[388114509,1759015845376,-480.0,0.00035616,9]
[388114511,1759015845385,-480.0,0.00035616,9]
[388114513,1759015845397,-151.0,0.00035616,7]
[388114515,1759015845406,-480.0,0.00035616,9]
[388114517,1759015845416,-151.0,0.00035616,7]
[388114519,1759015845425,-151.0,0.00035616,7]
[388114521,1759015845434,-151.0,0.00035616,7]
[388114523,1759015845443,-480.0,0.00035616,9]
[388114525,1759015845452,-811.62,0.00035616,9]
[388114527,1759015845462,-151.0,0.00035616,7]
[388114529,1759015845472,-480.0,0.00035616,9]
[388114531,1759015845483,-1042.29,0.00035616,9]
[388114533,1759015845492,-151.0,0.00035616,7]
[388114535,1759015845501,-151.0,0.00035616,7]
[388114537,1759015845510,-151.0,0.00035616,7]
[388114539,1759015845520,-480.0,0.00035616,9]
[388114541,1759015845529,-151.0,0.00035616,7]
[388114543,1759015845538,-1431.06,0.00035616,9]
[388114545,1759015845547,-151.0,0.00035616,7]
[388114547,1759015845557,-151.0,0.00035616,7]
[388114549,1759015845566,-779.25,0.00035616,9]
[388114551,1759015845576,-151.0,0.00035616,7]
[388114553,1759015845585,-480.0,0.00035616,9]
[388114555,1759015845594,-480.0,0.00035616,9]
[388114557,1759015845603,-480.0,0.00035616,9]
[388114559,1759015845612,-381.54482538,0.00035616,9]
[388114561,1759015845622,-949.15,0.00035616,9]
[388114563,1759015845631,-804.8,0.00035616,9]
[388114565,1759015845644,-664.07,0.00035616,9]
[388114567,1759015845653,-480.0,0.00035616,9]
[388114569,1759015845663,-3842.87,0.00035616,9]
[388114571,1759015845672,-772.52,0.00035616,9]
[388114573,1759015845683,-480.0,0.00035616,9]
[388114574,1759015845692,-480.0,0.00035616,9]
[388114576,1759015845702,-480.0,0.00035616,9]
[388114579,1759015845711,-480.0,0.00035616,9]
[388114580,1759015845721,-459.97359699,0.00035616,9]
[388114582,1759015845731,-480.0,0.00035616,9]
[388114585,1759015845742,-480.0,0.00035616,7]
[388114587,1759015845751,-224.44468543,0.00035616,9]
[388114589,1759015845761,-689.35,0.00035616,9]
[388114591,1759015845771,-584.01,0.00035616,9]
[388114592,1759015845781,-7622.55,0.00035616,3]
[388114594,1759015845790,-299.835522,0.00035616,7]
[388114597,1759015845800,-299.835522,0.00035616,7]
[388114598,1759015845815,-3224.42,0.00035616,9]
[388114600,1759015845835,-299.835522,0.00035616,7]
[388114602,1759015845856,-299.835522,0.00035616,7]
[388114604,1759015845866,-2671.4,0.00035616,9]
[388114606,1759015845875,-299.835522,0.00035616,7]
[388114608,1759015845884,-299.835522,0.00035616,7]
[388114610,1759015845893,-299.835522,0.00035616,7]
[388114612,1759015845903,-299.835522,0.00035616,7]
[388114614,1759015845914,-654.67,0.00035616,9]
[388114616,1759015845923,-299.835522,0.00035616,7]
[388114618,1759015845933,-299.835522,0.00035616,7]
[388114620,1759015845942,-299.835522,0.00035616,7]
[388114622,1759015845951,-299.835522,0.00035616,7]
[388114624,1759015845960,-480.0,0.00035616,9]
[388114626,1759015845970,-480.0,0.00035616,9]
[388114628,1759015845980,-299.835522,0.00035616,7]
[388114630,1759015845990,-299.835522,0.00035616,7]
[388114632,1759015845999,-299.835522,0.00035616,7]
[388114634,1759015846008,-589.81,0.00035616,9]
[388114636,1759015846018,-299.835522,0.00035616,7]
[388114638,1759015846027,-977.9,0.00035616,9]
[388114640,1759015846036,-480.0,0.00035616,9]
[388114642,1759015846045,-2552.38,0.00035616,9]
[388114644,1759015846055,-491.75437231,0.00035616,9]
[388114646,1759015846064,-2822.55,0.00035616,9]
[388114648,1759015846073,-718.75,0.00035616,9]
[388114650,1759015846083,-480.0,0.00035616,9]
[388114652,1759015846093,-480.0,0.00035616,9]
[388114654,1759015846102,-480.0,0.00035616,9]
[388114656,1759015846112,-480.0,0.00035616,9]
[388114658,1759015846121,-480.0,0.00035616,9]
[388114659,1759015846130,-786.99,0.00035616,9]
[388114661,1759015846139,-480.0,0.00035616,9]
[388114663,1759015846149,-480.0,0.00035616,9]
[388114665,1759015846158,-1827.97,0.00035616,9]
[388114667,1759015846167,-10236.26,0.00035616,9]
[388114669,1759015846176,-2808.56,0.00035616,9]
[388114671,1759015846187,-480.0,0.00035616,9]
[388114673,1759015846197,-480.0,0.00035616,9]
[388114675,1759015846207,-985.77,0.00035616,9]
[388114677,1759015846215,-1332.8,0.00035616,9]
[388114679,1759015846225,-957.47,0.00035616,9]
[388114681,1759015846234,-480.0,0.00035616,9]
[388114683,1759015846243,-4784.34,0.00035616,9]
[388114685,1759015846252,-4591.79,0.00035616,9]
[388114687,1759015846261,-480.0,0.00035616,9]
[388114689,1759015846270,-480.0,0.00035616,9]
[388114691,1759015846280,-5648.2,0.00035616,9]
[388114693,1759015846289,-213.52741714,0.00035616,9]
[388114695,1759015846298,-1152.73,0.00035616,9]
[388114697,1759015846308,-593.57,0.00035616,9]
[388114699,1759015846317,-480.0,0.00035616,9]
[388114701,1759015846326,-495.19,0.00035616,9]
[388114703,1759015846336,-480.0,0.00035616,2]
[388114705,1759015846346,-701.61,0.00035616,9]
[388114707,1759015846355,-780.45,0.00035616,9]
[388114709,1759015846364,-570.99,0.00035616,9]
[388114711,1759015846374,-1893.23,0.00035616,9]
[388114713,1759015846383,-482.46,0.00035616,9]
[388114715,1759015846393,-1063.33,0.00035616,9]
[388114717,1759015846402,-480.0,0.00035616,9]
[388114719,1759015846411,-1205.88,0.00035616,9]
[388114721,1759015846420,-480.0,0.00035616,9]
[388114723,1759015846429,-480.0,0.00035616,9]
[388114725,1759015846439,-1087.05,0.00035616,9]
[388114727,1759015846447,-613.49,0.00035616,9]
[388114729,1759015846456,-602.09,0.00035616,9]
[388114731,1759015846465,-833.36,0.00035616,9]
[388114733,1759015846475,-480.0,0.00035616,9]
[388114735,1759015846484,-480.0,0.00035616,9]
[388114737,1759015846493,-601.62,0.00035616,9]
[388114739,1759015846503,-480.0,0.00035616,9]
[388114741,1759015846512,-1016.85,0.00035616,9]
[388114743,1759015846521,-480.0,0.00035616,9]
[388114745,1759015846531,-480.0,0.00035616,9]
[388114747,1759015846540,-1275.24,0.00035616,9]
[388114749,1759015846549,-487.9785182,0.00035616,9]
[388114751,1759015846558,-2271.27,0.00035616,9]
[388114753,1759015846568,-853.3,0.00035616,9]
[388114755,1759015846577,-480.0,0.00035616,9]
[388114757,1759015846586,-1304.64,0.00035616,9]
[388114759,1759015846596,-480.0,0.00035616,9]
[388114761,1759015846606,-480.0,0.00035616,9]
[388114763,1759015846615,-704.68,0.00035616,9]
[388114765,1759015846625,-804.84,0.00035616,9]
[388114767,1759015846635,-555.33,0.00035616,9]
[388114769,1759015846646,-1908.46,0.00035616,9]
[388114771,1759015846655,-480.0,0.00035616,9]
[388114772,1759015846664,-480.0,0.00035616,9]
[388114775,1759015846674,-480.0,0.00035616,9]
[388114777,1759015846685,-480.0,0.00035616,9]
[388114778,1759015846694,-954.87,0.00035616,9]
[388114780,1759015846704,-2929.18,0.00035616,9]
[388114782,1759015846716,-1014.02,0.00035616,9]
[388114784,1759015846725,-1180.54,0.00035616,9]
[388114786,1759015846734,-3860.33,0.00035616,9]
[388114788,1759015846744,-567.97,0.00035616,9]
[388114790,1759015846753,-607.25,0.00035616,9]
[388114792,1759015846763,-1069.58,0.00035616,9]
[388114794,1759015846772,-480.0,0.00035616,9]
[388114802,1759015846829,-1322.58,0.00035616,9]
[388114803,1759015846839,-815.35,0.00035616,9]
[388114805,1759015846848,-579.1,0.00035616,9]
[388114807,1759015846857,-1161.42,0.00035616,9]
[388114809,1759015846866,-480.0,0.00035616,9]
[388114811,1759015846875,-980.77,0.00035616,9]
[388114813,1759015846884,-500.0,0.00035616,9]
[388114815,1759015846894,-500.0,0.00035616,9]
[388114817,1759015846903,-500.0,0.00035616,9]
[388114819,1759015846913,-500.0,0.00035616,9]
[388114821,1759015846922,-890.04,0.00035616,9]
[388114823,1759015846931,-400.0,0.00035616,9]
[388114825,1759015846939,-480.0,0.00035616,9]
[388114827,1759015846948,-2378.88,0.00035616,9]
[388114829,1759015846957,-2375.97,0.00035616,9]
[388114831,1759015846967,-6131.79,0.00035616,9]
[388114833,1759015846977,-480.0,0.00035616,9]
[388114835,1759015846986,-480.0,0.00035616,9]
[388114837,1759015846995,-480.0,0.00035616,9]
[388114839,1759015847003,-534.59474364,0.00035616,9]
[388114841,1759015847013,-480.0,0.00035616,9]
[388114843,1759015847022,-10069.51,0.00035616,9]
[388114845,1759015847031,-2586.4,0.00035616,9]
[388114847,1759015847040,-480.0,0.00035616,9]
[388114849,1759015847049,-1973.41,0.00035616,9]
[388114851,1759015847058,-480.0,0.00035616,9]
[388114853,1759015847068,-480.0,0.00035616,9]
[388114855,1759015847077,-480.0,0.00035616,9]
[388114857,1759015847088,-480.0,0.00035616,9]
[388114859,1759015847097,-480.0,0.00035616,9]
[388114861,1759015847106,-169.68752648,0.00035616,9]
[388114863,1759015847115,-1882.58,0.00035616,9]
[388114865,1759015847124,-480.0,0.00035616,9]
[388114867,1759015847133,-480.0,0.00035616,9]
[388114869,1759015847143,-480.0,0.00035616,9]
[388114871,1759015847152,-1027.94,0.00035616,9]
[388114872,1759015847161,-480.0,0.00035616,9]
[388114873,1759015847170,-480.0,0.00035616,9]
[388114874,1759015847179,-480.0,0.00035616,9]
[388114875,1759015847189,-538.42,0.00035616,9]
[388114876,1759015847198,-480.0,0.00035616,9]
[388114877,1759015847207,-3795.72,0.00035616,9]
[388114878,1759015847216,-480.0,0.00035616,9]
[388114879,1759015847225,-480.0,0.00035616,9]
[388114880,1759015847234,-480.0,0.00035616,9]
[388114882,1759015847244,-1740.58,0.00035616,9]
[388114883,1759015847253,-480.0,0.00035616,9]
[388114886,1759015847262,-825.65,0.00035616,9]
[388114887,1759015847271,-584.45,0.00035616,9]
[388114889,1759015847281,-480.0,0.00035616,9]
[388114892,1759015847290,-480.0,0.00035616,9]
[388114893,1759015847299,-566.51814038,0.00035616,9]
[388114896,1759015847308,-1405.57,0.00035616,9]
[388114897,1759015847317,-1164.71,0.00035616,9]
[388114899,1759015847326,-3006.63,0.00035616,9]
[388114901,1759015847335,-976.35,0.00035616,9]
[388114903,1759015847345,-480.0,0.00035616,7]
[388114905,1759015847354,-1437.9,0.00035616,9]
[388114907,1759015847363,-878.8,0.00035616,9]
[388114909,1759015847373,-5485.04,0.00035616,9]
[388114911,1759015847382,-480.0,0.00035616,9]
[388114913,1759015847391,-480.0,0.00035616,9]
[388114915,1759015847400,-5000.0,0.00035642,4]
[388114917,1759015847410,-500.0,0.00035673,5]
[388114919,1759015847418,-268.285551,0.00035673,5]
[388114921,1759015847428,-500.0,0.00035673,5]
[388114923,1759015847437,-500.0,0.00035673,5]
[388114925,1759015847446,-500.0,0.00035673,5]
[388114927,1759015847455,-500.0,0.00035673,5]
[388114929,1759015847464,-500.0,0.00035673,5]
[388114931,1759015847473,-500.0,0.00035673,5]
[388114933,1759015847482,-500.0,0.00035673,5]
[388114934,1759015847491,-500.0,0.00035673,5]
[388114936,1759015847500,-500.0,0.00035673,5]
[388114938,1759015847509,-500.0,0.00035673,5]
[388114940,1759015847519,-500.0,0.00035673,5]
[388114942,1759015847528,-400.0,0.00035673,5]
[388114944,1759015847537,-168.15956814,0.00035673,5]
[388114946,1759015847548,-229.87390624,0.00035673,5]
[388114949,1759015847558,-501.26524461,0.00035673,5]
[388114950,1759015847567,-500.0,0.00035673,5]
[388114952,1759015847576,-150.0,0.00035673,5]
[388114954,1759015847585,-500.0,0.00035673,5]
[388114956,1759015847594,-500.0,0.00035673,5]
[388114958,1759015847603,-500.0,0.00035673,5]
[388114960,1759015847612,-500.0,0.00035673,5]
[388114962,1759015847621,-500.0,0.00035673,5]
[388114964,1759015847631,-500.0,0.00035673,5]
[388114966,1759015847640,-500.0,0.00035673,5]
[388114968,1759015847649,-500.0,0.00035673,5]
[388114970,1759015847658,-4588.0,0.00035692,2]
[388114972,1759015847667,-653.0,0.000357,2]
[388114974,1759015847677,-160.0,0.000357,2]
[388114976,1759015847686,-4528.36097487,0.0003579,2]
[388114978,1759015847697,-500.0,0.00035873,5]
[388114980,1759015847706,-500.0,0.00035873,5]
[388114982,1759015847716,-500.0,0.00035873,5]
[388114984,1759015847725,-585.16274702,0.00035873,5]
[388114986,1759015847734,-500.04198581,0.00035873,5]
[388114988,1759015847743,-597.62053348,0.00035873,2]
[388114990,1759015847752,-500.0,0.00035873,5]
[388114992,1759015847761,-500.0,0.00035873,5]
[388114994,1759015847770,-500.0,0.00035873,5]
[388114995,1759015847779,-500.0,0.00035873,5]